bitfinex/quotes_SOLUSD_20251001
["timestamp","ask_amount","ask_price","bid_price","bid_amount"]
[1759335851741,2.02963674,220.44,220.43,0.2]
[1759335851948,6.56601852,220.44,220.43,0.2]
[1759335854153,4.53613434,220.46,220.43,0.89]
[1759335854753,6.56577108,220.46,220.43,0.2]
[1759335855158,4.53613434,220.46,220.44,0.69]
[1759335855450,5.18613434,220.46,220.43,0.2]
[1759335855651,6.56577108,220.46,220.43,0.89]
[1759335855856,4.53613434,220.46,220.44,0.69]
[1759335856936,4.53613434,220.46,220.45,0.69]
[1759335857137,3.18818563,220.5,220.45,0.69]
[1759335857333,0.65,220.51,220.45,0.69]
[1759335857334,4.53538328,220.49,220.45,0.69]
[1759335857531,4.53517986,220.5,220.45,0.69]
[1759335857752,4.53517986,220.5,220.46,0.69]
[1759335858130,4.53517986,220.5,220.47,0.69]
[1759335858542,4.53517986,220.5,220.44,4.53628179]
[1759335858739,4.53517986,220.5,220.45,0.69]
[1759335858930,6.56457846,220.51,220.46,0.69]
[1759335859245,7.21457846,220.51,220.46,0.69]
[1759335859445,7.21457846,220.51,220.44,4.53628179]
[1759335859647,7.21457846,220.51,220.45,0.69]
[1759335860245,14.92513823,220.53,220.47,20.8]
[1759335860548,14.92513823,220.53,220.48,0.67]
[1759335861048,14.92513823,220.53,220.49,0.67]
[1759335862449,14.92513823,220.53,220.5,0.67]
[1759335862650,14.92513823,220.53,220.48,0.67]
[1759335862851,14.92513823,220.53,220.47,25.33556231]
[1759335863049,14.92513823,220.53,220.49,0.67]
[1759335864157,2.68963674,220.52,220.47,20.8]
[1759335864758,2.68963674,220.52,220.48,0.7]
[1759335864939,2.02963674,220.52,220.48,0.7]
[1759335865141,6.56453781,220.52,220.48,0.7]
[1759335866242,4.53490107,220.52,220.48,0.7]
[1759335866542,6.56453781,220.52,220.48,0.7]
[1759335867753,5.1950829,220.51,220.47,20.8]
[1759335867952,0.66,220.5,220.47,20.8]
[1759335868162,4.5350829,220.51,220.48,0.7]
[1759335869034,13.08007344,220.53,220.48,0.7]
[1759335869236,0.66,220.52,220.48,0.7]
[1759335869463,10.3904367,220.53,220.49,0.7]
[1759335869650,11.0504367,220.53,220.49,0.7]
[1759335869839,17.61460579,220.53,220.47,20.8]
[1759335870045,2.68963674,220.52,220.48,31.84]
[1759335870246,0.66,220.51,220.48,31.84]
[1759335870453,0.66,220.5,220.47,31.84]
[1759335870642,2.02963674,220.52,220.47,31.84]
[1759335871159,0.66,220.51,220.47,31.84]
[1759335871658,0.66,220.5,220.47,31.84]
[1759335871854,4.5350576,220.51,220.47,31.84]
[1759335872162,15.58516336,220.53,220.48,0.7]
[1759335872359,2.68963674,220.52,220.47,31.84]
[1759335872544,0.66,220.51,220.47,31.84]
[1759335872738,0.66,220.5,220.47,31.84]
[1759335872943,2.68963674,220.52,220.47,32.54]
[1759335873349,14.92516496,220.53,220.48,0.7]
[1759335873542,0.66,220.52,220.48,0.7]
[1759335873751,0.66,220.52,220.47,36.37572063]
[1759335874069,17.6148017,220.53,220.48,0.7]
[1759335874371,17.6148017,220.53,220.48,31.84]
[1759335874564,5.19473825,220.52,220.48,31.84]
[1759335874947,4.53473825,220.52,220.46,25.33593098]
[1759335875260,4.53473825,220.52,220.47,31.84]
[1759335875457,4.53473825,220.52,220.46,25.33593098]
[1759335875648,5.19473825,220.52,220.47,32.54]
[1759335876148,4.53456632,220.53,220.47,36.37565352]
[1759335876349,3.18818563,220.57,220.47,36.37565352]
[1759335876350,4.53391367,220.56,220.48,0.7]
[1759335877269,5.19391367,220.56,220.5,20.8]
[1759335877443,7.22355041,220.56,220.5,20.8]
[1759335877644,0.66,220.55,220.5,20.8]
[1759335877851,0.66,220.54,220.5,20.8]
[1759335878274,7.22355041,220.56,220.5,21.5]
[1759335878572,0.66,220.55,220.51,31.84]
[1759335879062,0.66,220.54,220.5,20.8]
[1759335879243,0.66,220.54,220.51,31.84]
[1759335879872,7.2235246,220.57,220.52,0.7]
[1759335880364,5.19388786,220.57,220.53,0.7]
[1759335880773,4.5335333,220.58,220.54,0.7]
[1759335881463,6.56317004,220.58,220.51,32.54]
[1759335881666,6.56317004,220.58,220.54,0.7]
[1759335881858,7.22317004,220.58,220.52,0.7]
[1759335883854,5.1935333,220.58,220.52,0.7]
[1759335884250,7.22317004,220.58,220.52,5.23468318]
[1759335885169,5.1935333,220.58,220.52,5.23468318]
[1759335885469,7.22317004,220.58,220.52,5.23468318]
[1759335885651,5.1935333,220.58,220.52,5.23468318]
[1759335887369,0.66,220.57,220.52,20.8]
[1759335887674,2.68963674,220.57,220.53,31.84]
[1759335887968,0.66,220.56,220.53,31.84]
[1759335888670,5.19392778,220.56,220.53,31.84]
[1759335888847,4.53392778,220.56,220.53,31.84]
[1759335889045,5.19392778,220.56,220.53,31.84]
[1759335890363,2.68963674,220.55,220.52,20.8]
[1759335890564,0.66,220.54,220.52,52.64]
[1759335893661,0.66,220.55,220.52,52.64]
[1759335893848,5.19416263,220.55,220.52,52.64]
[1759335894482,5.19416263,220.55,220.52,31.84]
[1759335894675,4.53416263,220.55,220.52,31.84]
[1759335896156,0.65,220.54,220.52,31.84]
[1759335897352,0.65,220.54,220.53,31.84]
[1759335897967,4.53416263,220.55,220.53,31.84]
[1759335898285,0.65,220.54,220.53,31.84]
[1759335898980,5.18432483,220.54,220.53,31.84]
[1759335899180,16.80446006,220.54,220.5,31.84]
[1759335899417,0.65,220.53,220.5,31.84]
[1759335899687,2.02963674,220.51,220.49,31.84]
[1759335900272,2.67963674,220.51,220.49,31.84]
[1759335900482,7.21474226,220.51,220.49,31.84]
[1759335901394,5.18510552,220.51,220.49,31.84]
[1759335901587,7.21474226,220.51,220.49,31.84]
[1759335901789,5.18510552,220.51,220.49,31.84]
[1759335901970,0.65,220.51,220.49,31.84]
[1759335902174,7.21467859,220.51,220.49,31.84]
[1759335903697,5.18504185,220.51,220.49,31.84]
[1759335904194,4.53473607,220.52,220.49,31.84]
[1759335904482,5.18473607,220.52,220.49,31.84]
[1759335904867,6.56417897,220.53,220.49,32.5]
[1759335905072,6.56417897,220.53,220.5,0.66]
[1759335905268,8.22353089,220.57,220.51,0.66]
[1759335905471,5.18390055,220.57,220.52,31.84]
[1759335905686,5.18390055,220.57,220.53,0.66]
[1759335905892,7.21353729,220.57,220.53,0.66]
[1759335906079,7.21353729,220.57,220.52,31.84]
[1759335906390,4.53411924,220.55,220.52,32.5]
[1759335906589,4.53411924,220.55,220.52,31.84]
[1759335906797,4.53411924,220.55,220.52,32.5]
[1759335906964,4.53394144,220.56,220.53,0.66]
[1759335908187,4.53370811,220.57,220.53,0.66]
[1759335908690,5.18370811,220.57,220.53,0.66]
[1759335908871,4.53370811,220.57,220.54,0.66]
[1759335910294,7.69969567,220.58,220.54,0.66]
[1759335910496,8.34969567,220.58,220.52,37.0346372]
[1759335911069,8.34969567,220.58,220.53,0.66]
[1759335911467,7.69969567,220.58,220.53,0.66]
[1759335911694,5.18384895,220.57,220.53,0.66]
[1759335914773,0.65,220.57,220.53,0.66]
[1759335914972,0.65,220.57,220.53,5.19452882]
[1759335915482,9.92720232,220.59,220.53,4.53452882]
[1759335915681,9.92720232,220.59,220.47,109.82720232]
[1759335915682,3.16619309,220.56,220.43,101.98290927]
[1759335915870,9.92720232,220.59,220.47,20.8]
[1759335915871,3.16619309,220.54,220.47,20.8]
[1759335916071,3.16619309,220.54,220.48,0.66]
[1759335916289,3.81619309,220.53,220.49,31.82]
[1759335916478,0.65,220.52,220.5,31.82]
[1759335919306,0.65,220.52,220.47,0.66]
[1759335919501,0.65,220.51,220.47,20.8]
[1759335919698,3.16619309,220.51,220.48,31.82]
[1759335920011,0.69,220.51,220.48,31.82]
[1759335920598,4.53481917,220.52,220.48,31.82]
[1759335920802,5.22481917,220.52,220.48,32.5]
[1759335921112,4.53481917,220.52,220.49,0.68]
[1759335922530,5.22481917,220.52,220.48,31.82]
[1759335923110,10.87647521,220.56,220.48,31.82]
[1759335923314,0.69,220.52,220.48,32.5]
[1759335924527,5.2248367,220.52,220.48,32.5]
[1759335927108,4.53453044,220.53,220.48,32.5]
[1759335927310,5.23453044,220.53,220.48,31.82]
[1759335927513,5.23453044,220.53,220.49,0.7]
[1759335927905,0.7,220.52,220.48,31.82]
[1759335928118,0.7,220.51,220.48,31.82]
[1759335928521,8.40072353,220.53,220.48,32.52]
[1759335928728,0.7,220.52,220.48,31.82]
[1759335929226,5.23494172,220.51,220.48,31.82]
[1759335929407,4.53494172,220.51,220.48,31.82]
[1759335929614,5.23494172,220.51,220.48,31.82]
[1759335929812,4.53494172,220.51,220.48,31.82]
[1759335930032,4.53494172,220.51,220.48,32.52]
[1759335930604,7.70064661,220.54,220.48,31.82]
[1759335930827,0.7,220.53,220.48,32.52]
[1759335931210,0.7,220.53,220.49,0.7]
[1759335931929,3.03963034,220.56,220.51,20.8]
[1759335932104,10.82318515,220.57,220.55,20.8]
[1759335932304,10.82318515,220.57,220.56,32.52]
[1759335933318,10.82318515,220.57,220.56,37.05391367]
[1759335933829,10.82318515,220.57,220.56,32.52]
[1759335934623,10.82318515,220.57,220.56,31.82]
[1759335939130,15.35689326,220.57,220.56,31.82]
[1759335941011,15.35689326,220.57,220.56,31.19914086]
[1759335941628,15.35689326,220.57,220.55,20.8]
[1759335941925,15.35689326,220.57,220.56,31.82]
[1759335943236,15.35689326,220.57,220.55,21.5]
[1759335943443,15.35689326,220.57,220.56,31.82]
[1759335943942,15.35689326,220.57,220.55,21.5]
[1759335944233,15.35689326,220.57,220.56,31.82]
[1759335945740,15.35689326,220.57,220.5,0.7]
[1759335945741,16.05689326,220.57,220.5,0.7]
[1759335946041,16.05689326,220.57,220.43,31.36079835]
[1759335946042,3.86619309,220.56,220.51,31.82]
[1759335946229,3.86619309,220.56,220.48,0.7]
[1759335946230,0.7,220.55,220.52,31.82]
[1759335946423,0.7,220.54,220.49,13.62057615]
[1759335946625,0.7,220.53,220.5,31.82]
[1759335947741,4.53473607,220.52,220.5,31.82]
[1759335950545,4.53453044,220.53,220.5,31.82]
[1759335950750,5.23453044,220.53,220.5,31.82]
[1759335951051,4.53453044,220.53,220.5,32.52]
[1759335951645,4.53453044,220.53,220.51,0.7]
[1759335951825,4.53453044,220.53,220.52,31.82]
[1759335952526,15.86951035,220.55,220.52,31.82]
[1759335952722,16.56951035,220.55,220.52,31.82]
[1759335952923,15.86951035,220.55,220.47,13.62119457]
[1759335953124,0.7,220.54,220.48,31.82]
[1759335953529,0.71,220.53,220.48,31.82]
[1759335954144,3.16619309,220.54,220.48,31.82]
[1759335954351,0.71,220.52,220.46,114.17181306]
[1759335954530,4.53494172,220.51,220.47,52.62]
[1759335954734,5.24494172,220.51,220.47,53.27]
[1759335955033,4.53494172,220.51,220.48,0.65]
[1759335955430,4.53494172,220.51,220.47,53.27]
[1759335956041,4.53494172,220.51,220.47,20.8]
[1759335956231,3.87619309,220.5,220.44,45.4430502]
[1759335956442,0.71,220.49,220.44,45.4430502]
[1759335956734,0.71,220.48,220.44,32.47]
[1759335958157,4.5357645,220.47,220.46,20.8]
[1759335958545,4.5357645,220.47,220.44,32.47]
[1759335960430,0.71,220.46,220.44,31.82]
[1759335960838,0.71,220.45,220.44,31.82]
[1759335961346,19.04136884,220.47,220.44,31.82]
[1759335961549,0.71,220.46,220.44,31.82]
[1759335962133,4.5357645,220.47,220.44,31.82]
[1759335962335,0.71,220.47,220.44,31.82]
[1759335963734,4.536176,220.45,220.44,31.82]
[1759335964337,8.41236909,220.45,220.43,0.2]
[1759335964555,3.87619309,220.44,220.43,0.2]
[1759335965154,0.71,220.44,220.43,0.2]
[1759335965359,3.87619309,220.44,220.43,0.2]
[1759335965757,8.41257487,220.44,220.43,0.2]
[1759335965970,5.24638178,220.44,220.43,0.2]
[1759335967473,4.53638178,220.44,220.43,0.2]
[1759335967672,5.24638178,220.44,220.43,0.2]
[1759335968949,4.53619994,220.45,220.43,0.2]
[1759335970667,5.24590952,220.47,220.43,0.2]
[1759335971054,0.71,220.46,220.43,0.2]
[1759335971453,13.36546285,220.52,220.44,0.65]
[1759335971667,8.2855819,220.53,220.44,0.65]
[1759335971973,5.24453044,220.53,220.44,0.65]
[1759335972569,5.24453044,220.53,220.44,5.18635648]
[1759335972771,0.71,220.52,220.45,0.65]
[1759335972974,4.53453044,220.53,220.45,0.65]
[1759335973272,16.58085656,220.53,220.45,0.65]
[1759335973661,4.53453044,220.53,220.45,0.65]
[1759335973867,4.53453044,220.53,220.47,20.8]
[1759335974068,4.53453044,220.53,220.48,32.47]
[1759335974273,4.53453044,220.53,220.49,0.65]
[1759335974656,4.53432483,220.54,220.49,0.65]
[1759335974858,5.24432483,220.54,220.49,0.65]
[1759335975165,4.53432483,220.54,220.49,0.65]
[1759335975362,0.71,220.53,220.49,0.65]
[1759335975567,0.71,220.52,220.48,31.82]
[1759335975775,0.71,220.51,220.48,31.82]
[1759335976160,0.71,220.5,220.47,31.82]
[1759335976359,0.71,220.49,220.47,31.82]
[1759335976574,5.24548451,220.49,220.47,31.82]
[1759335976770,5.24548451,220.49,220.43,0.2]
[1759335976771,0.71,220.48,220.45,31.82]
[1759335977182,0.71,220.47,220.43,0.2]
[1759335977359,2.02825038,220.45,220.43,0.2]
[1759335977559,2.73825038,220.45,220.43,0.2]
[1759335978175,0.71,220.45,220.43,0.2]
[1759335978574,5.2462898,220.45,220.43,0.2]
[1759335978775,4.5362898,220.45,220.43,0.2]
[1759335980483,4.53597024,220.46,220.43,0.2]
[1759335980862,5.20597024,220.46,220.43,0.2]
[1759335981060,5.20533178,220.5,220.44,0.69]
[1759335981266,0.67,220.49,220.43,0.2]
[1759335981475,2.02825038,220.47,220.43,0.2]
[1759335981777,15.87320026,220.5,220.43,0.2]
[1759335981778,2.69825038,220.46,220.43,0.2]
[1759335981980,2.02825038,220.45,220.43,0.2]
[1759335982363,5.20638178,220.44,220.43,0.2]
[1759335982764,7.23463216,220.44,220.43,0.2]
[1759335986593,6.56463216,220.44,220.43,0.2]
[1759335986767,7.27463216,220.44,220.43,0.2]
[1759335986963,6.56463216,220.44,220.43,0.2]
[1759335991894,2.02825038,220.44,220.43,0.2]
[1759335992999,6.56463216,220.44,220.43,0.2]
[1759335993292,7.27463216,220.44,220.43,0.2]
[1759335993991,6.56463216,220.44,220.43,0.2]
[1759335994576,2.02825038,220.44,220.43,0.2]
[1759335995196,2.02825038,220.44,220.43,0.91]
[1759335995987,2.02825038,220.44,220.43,0.2]
[1759336000683,2.02825038,220.44,220.43,0.91]
[1759336000883,2.73825038,220.44,220.43,0.2]
[1759336001111,2.02825038,220.44,220.43,0.2]
[1759336002207,6.56463216,220.44,220.43,0.2]
[1759336002392,2.02825038,220.44,220.43,0.2]
[1759336002592,7.27463216,220.44,220.43,0.2]
[1759336002906,2.02825038,220.44,220.43,0.2]
[1759336004535,2.02825038,220.45,220.43,0.2]
[1759336006607,2.73825038,220.45,220.43,0.2]
[1759336006810,2.73825038,220.44,220.43,0.2]
[1759336007017,2.73825038,220.45,220.43,0.2]
[1759336007190,2.02825038,220.45,220.43,0.2]
[1759336007508,2.02825038,220.46,220.43,0.2]
[1759336007680,0.71,220.45,220.43,0.2]
[1759336008084,2.73825038,220.46,220.43,0.2]
[1759336008300,7.27434748,220.46,220.43,0.2]
[1759336008497,0.71,220.45,220.43,0.2]
[1759336009220,2.73825038,220.45,220.43,0.2]
[1759336011122,7.27444075,220.45,220.43,0.2]
[1759336011810,0.71,220.44,220.43,0.2]
[1759336012513,6.56444075,220.45,220.43,0.2]
[1759336012687,0.71,220.44,220.43,0.2]
[1759336012888,4.53619037,220.45,220.43,0.2]
[1759336013115,5.24619037,220.45,220.43,0.2]
[1759336013994,0.68,220.44,220.43,0.2]
[1759336014194,6.56426389,220.46,220.43,0.2]
[1759336014427,7.24426389,220.46,220.43,0.2]
[1759336014615,0.68,220.45,220.43,0.2]
[1759336015721,0.68,220.44,220.43,0.2]
[1759336016022,7.24427016,220.46,220.43,0.2]
[1759336016194,0.68,220.44,220.43,0.2]
[1759336016396,0.68,220.45,220.43,0.2]
[1759336017016,6.56427016,220.46,220.43,0.2]
[1759336017206,0.68,220.44,220.43,0.2]
[1759336018797,5.21638178,220.44,220.43,0.2]
[1759336019623,6.56446036,220.45,220.43,0.2]
[1759336019924,0.68,220.44,220.43,0.2]
[1759336021017,4.53584755,220.47,220.43,0.2]
[1759336021318,14.39263962,220.5,220.43,5.42645239]
[1759336021319,3.05464304,220.5,220.43,5.42645239]
[1759336021617,5.2154115,220.49,220.43,0.89]
[1759336021823,0.68,220.48,220.43,0.89]
[1759336023528,5.21575838,220.48,220.43,0.2]
[1759336023728,5.21575838,220.48,220.44,0.69]
[1759336026539,2.70825038,220.47,220.43,0.2]
[1759336026832,2.02825038,220.46,220.44,31.82]
[1759336027078,0.68,220.45,220.44,31.82]
[1759336028120,0.68,220.45,220.43,0.2]
[1759336028312,0.68,220.45,220.43,32.02]
[1759336028516,0.68,220.45,220.43,0.2]
[1759336028719,0.68,220.45,220.43,32.02]
[1759336029121,0.68,220.45,220.43,0.2]
[1759336029323,0.68,220.49,220.44,32.51]
[1759336029529,0.68,220.48,220.44,31.82]
[1759336029833,0.68,220.47,220.44,31.82]
[1759336030536,4.53536063,220.49,220.44,31.82]
[1759336030716,3.73464304,220.52,220.45,0.69]
[1759336030937,10.86432519,220.55,220.45,0.69]
[1759336030938,0.68,220.51,220.45,0.69]
[1759336031130,0.68,220.51,220.46,31.82]
[1759336031330,0.68,220.5,220.47,31.82]
[1759336031549,0.68,220.49,220.48,31.82]
[1759336033646,4.53520602,220.5,220.48,31.82]
[1759336033831,5.21520602,220.5,220.48,31.82]
[1759336036272,4.53472269,220.53,220.48,31.82]
[1759336036438,11.54432519,220.55,220.49,0.69]
[1759336036637,16.07854774,220.55,220.48,32.51]
[1759336036841,0.68,220.54,220.48,32.51]
[1759336037574,5.21452033,220.54,220.48,32.51]
[1759336038138,5.21452033,220.54,220.49,0.69]
[1759336038349,15.39844464,220.55,220.5,0.69]
[1759336038554,16.07844464,220.55,220.51,0.69]
[1759336038757,0.68,220.54,220.52,31.8]
[1759336039086,11.54432519,220.55,220.52,31.8]
[1759336039451,10.86432519,220.55,220.52,31.8]
[1759336039983,10.86432519,220.55,220.53,0.71]
[1759336040492,16.10844469,220.55,220.52,31.8]
[1759336044574,10.86432519,220.55,220.53,0.67]
[1759336044881,10.86432519,220.55,220.54,0.67]
[1759336046783,5.24369865,220.58,220.54,0.67]
[1759336047478,5.24369865,220.58,220.52,36.33469022]
[1759336047685,0.71,220.58,220.53,0.67]
[1759336047856,0.71,220.58,220.53,12.00243833]
[1759336048668,0.71,220.58,220.53,16.53692011]
[1759336048986,11.33243833,220.61,220.54,0.67]
[1759336048987,0.71,220.61,220.54,0.67]
[1759336049177,0.71,220.6,220.54,0.67]
[1759336049365,0.71,220.6,220.54,14.28810299]
[1759336049558,0.71,220.59,220.54,14.28810299]
[1759336050076,0.71,220.59,220.5,0.67]
[1759336050077,0.71,220.58,220.5,0.67]
[1759336050274,3.87809863,220.58,220.51,31.8]
[1759336050483,0.71,220.57,220.51,31.8]
[1759336050670,0.71,220.56,220.51,31.8]
[1759336050859,0.71,220.55,220.51,32.47]
[1759336051066,14.50184168,220.59,220.51,31.8]
[1759336051067,0.71,220.54,220.51,31.8]
[1759336051578,4.53350258,220.58,220.52,0.67]
[1759336051792,5.24350258,220.58,220.52,0.67]
[1759336053564,4.24350258,220.58,220.52,0.67]
[1759336054086,0.71,220.58,220.52,0.67]
[1759336054391,0.71,220.58,220.51,32.47]
[1759336054600,0.71,220.57,220.51,32.47]
[1759336054963,0.71,220.56,220.5,79.1]
[1759336055165,0.71,220.58,220.52,31.8]
[1759336055382,0.71,220.58,220.53,0.67]
[1759336055579,15.86582048,220.6,220.53,0.67]
[1759336055780,0.71,220.59,220.53,0.67]
[1759336055965,0.71,220.59,220.52,31.8]
[1759336056166,5.24350258,220.58,220.52,32.47]
[1759336056588,0.71,220.57,220.52,32.47]
[1759336056778,15.86725904,220.58,220.52,32.47]
[1759336056779,4.53350258,220.58,220.52,32.47]
[1759336056981,0.71,220.57,220.52,32.47]
[1759336057178,4.53350258,220.58,220.53,0.67]
[1759336057379,4.53350258,220.58,220.54,0.67]
[1759336057576,0.71,220.57,220.52,31.8]
[1759336057776,0.71,220.56,220.53,52.6]
[1759336057978,15.86725904,220.58,220.5,11.33345343]
[1759336057979,0.71,220.55,220.5,11.33345343]
[1759336058177,5.24432483,220.54,220.5,11.33345343]
[1759336058499,5.24432483,220.54,220.48,31.8]
[1759336058500,0.71,220.53,220.48,31.8]
[1759336058796,0.71,220.52,220.48,31.8]
[1759336059201,0.71,220.51,220.48,31.8]
[1759336060200,4.53514739,220.5,220.48,31.8]
[1759336060696,0.71,220.51,220.48,31.8]
[1759336060887,14.50391072,220.54,220.48,31.8]
[1759336060888,4.53453044,220.53,220.48,31.8]
[1759336061086,0.71,220.52,220.48,31.8]
[1759336061285,0.71,220.51,220.48,31.8]
[1759336062183,5.24496495,220.51,220.48,31.8]
[1759336063405,15.87231926,220.51,220.44,10.87647521]
[1759336063601,0.71,220.5,220.45,31.8]
[1759336063791,0.71,220.49,220.45,32.47]
[1759336064386,15.87231926,220.51,220.45,32.47]
[1759336064618,0.71,220.5,220.45,32.47]
[1759336065304,15.87231926,220.51,220.45,32.47]
[1759336065604,0.71,220.5,220.45,32.47]
[1759336065909,4.53535307,220.49,220.46,0.67]
[1759336066093,4.53535307,220.49,220.47,0.67]
[1759336066491,0.71,220.54,220.48,0.67]
[1759336066803,0.71,220.54,220.49,31.8]
[1759336067006,0.71,220.53,220.49,31.8]
[1759336067202,0.71,220.52,220.44,0.67]
[1759336067388,0.71,220.52,220.45,31.8]
[1759336067583,0.71,220.52,220.45,0.67]
[1759336067783,0.71,220.52,220.46,31.8]
[1759336067983,0.71,220.51,220.46,31.8]
[1759336068301,4.53473607,220.52,220.47,0.67]
[1759336068504,4.53473607,220.52,220.48,0.67]
[1759336068879,4.53473607,220.52,220.49,0.67]
[1759336069079,4.53473607,220.52,220.46,36.33595136]
[1759336069292,4.53473607,220.52,220.47,0.67]
[1759336069486,4.53453044,220.53,220.48,0.67]
[1759336069692,5.24453044,220.53,220.48,0.67]
[1759336069900,4.53453044,220.53,220.48,0.67]
[1759336070093,0.71,220.52,220.48,0.67]
[1759336070285,0.71,220.52,220.49,31.8]
[1759336070798,0.71,220.51,220.49,31.8]
[1759336070998,0.71,220.5,220.44,0.67]
[1759336071191,0.71,220.5,220.45,31.8]
[1759336071388,4.53494172,220.51,220.45,32.47]
[1759336071592,0.71,220.5,220.45,32.47]
[1759336071807,0.71,220.49,220.45,32.47]
[1759336072797,0.71,220.48,220.45,31.8]
[1759336073319,0.71,220.47,220.43,0.2]
[1759336073490,4.536176,220.45,220.43,32.0]
[1759336073697,0.7,220.44,220.43,0.2]
[1759336076517,5.23638178,220.44,220.43,0.2]
[1759336077809,4.25339478,220.44,220.43,0.2]
[1759336078626,18.58229176,220.44,220.43,0.2]
[1759336079928,19.28229176,220.44,220.43,0.2]
[1759336080406,0.28432314,220.39,220.35,0.2]
[1759336080606,14.32889698,220.36,220.35,0.2]
[1759336080918,0.28432314,220.36,220.35,0.2]
[1759336081114,3.45242177,220.36,220.35,0.2]
[1759336081700,0.28432314,220.36,220.35,0.2]
[1759336082330,4.53720508,220.4,220.35,0.2]
[1759336082504,15.4132686,220.42,220.35,0.87]
[1759336082704,0.28432314,220.41,220.36,0.67]
[1759336082907,18.58136723,220.42,220.35,0.2]
[1759336082908,4.53679339,220.42,220.37,0.67]
[1759336083101,0.7,220.41,220.36,0.67]
[1759336083328,11.57647521,220.4,220.35,0.2]
[1759336083715,11.57647521,220.4,220.35,0.87]
[1759336084320,0.98432314,220.39,220.35,0.2]
[1759336084723,5.23761684,220.38,220.35,0.2]
[1759336084916,4.53761684,220.38,220.35,0.2]
[1759336085121,0.7,220.37,220.35,0.2]
[1759336085313,0.7,220.36,220.35,0.2]
[1759336085513,0.7,220.37,220.35,0.2]
[1759336086015,0.98432314,220.37,220.35,0.2]
[1759336086734,4.53802868,220.36,220.35,0.2]
[1759336088426,10.87647521,220.37,220.35,0.87]
[1759336088736,4.67996992,220.38,220.35,0.87]
[1759336089504,0.14216157,220.39,220.35,0.2]
[1759336089710,4.53709846,220.41,220.36,0.67]
[1759336090120,4.53709846,220.41,220.37,0.67]
[1759336091212,4.53709846,220.41,220.38,0.67]
[1759336091831,4.82112777,220.42,220.38,0.67]
[1759336092156,4.8207321,220.44,220.39,0.67]
[1759336092317,4.67857053,220.44,220.4,0.67]
[1759336092517,5.37857053,220.44,220.38,0.67]
[1759336092715,0.7,220.5,220.38,21.47]
[1759336093045,0.7,220.5,220.42,20.8]
[1759336093336,10.87647521,220.49,220.42,52.6]
[1759336093626,12.90516542,220.51,220.43,0.67]
[1759336093833,2.72869021,220.52,220.43,0.67]
[1759336094033,15.41141693,220.51,220.43,0.67]
[1759336094333,0.14216157,220.5,220.43,0.67]
[1759336094535,0.28432314,220.5,220.43,0.67]
[1759336095009,27.44877124,220.51,220.43,0.67]
[1759336095211,29.47746145,220.51,220.43,0.67]
[1759336095422,0.28432314,220.5,220.44,13.62614402]
[1759336095608,0.28432314,220.5,220.44,14.29614402]
[1759336096130,4.53535307,220.49,220.44,14.29614402]
[1759336096335,4.53535307,220.49,220.41,31.8]